fUST/lending_fUST_20250104
["ID","MTS","AMOUNT","RATE_DAILY","PERIOD"]
[347592768,1735935040352,-500.0,0.00019452,3]
[347592769,1735935040361,-768.999621,0.00019452,2]
[347592770,1735935040370,-178.758946,0.00019452,2]
[347592771,1735935040379,-178.758946,0.00019452,2]
[347592772,1735935040388,-500.76,0.00019452,3]
[347592773,1735935040398,-798.42,0.00019452,3]
[347592774,1735935040408,-67.33057953,0.00019452,3]
[347592777,1735935040953,-500.0,0.00019178,2]
[347592778,1735935040963,-151.0,0.00019178,2]
[347592779,1735935040972,-197.100109,0.00019178,2]
[347592780,1735935040981,-516.19942047,0.00019452,3]
[347592781,1735935040991,-311.410945,0.00019452,2]
[347592782,1735935040999,-311.410945,0.00019452,2]
[347592783,1735935041008,-500.0,0.00019452,3]
[347592784,1735935041017,-500.0,0.00019452,3]
[347592785,1735935041026,-311.410945,0.00019452,2]
[347592786,1735935041035,-500.0,0.00019452,3]
[347592787,1735935041044,-311.410945,0.00019452,2]
[347592788,1735935041053,-500.0,0.00019452,3]
[347592789,1735935041065,-500.0,0.00019452,3]
[347592790,1735935041076,-713.92,0.00019452,3]
[347592791,1735935041084,-151.0,0.00019452,2]
[347592792,1735935041093,-500.0,0.00019452,3]
[347592793,1735935041102,-500.0,0.00019452,3]
[347592794,1735935041111,-500.0,0.00019452,3]
[347592795,1735935041120,-500.0,0.00019452,3]
[347592796,1735935041129,-500.0,0.00019452,3]
[347592797,1735935041138,-500.0,0.00019452,3]
[347592798,1735935041149,-955.12,0.00019452,3]
[347592799,1735935041158,-790.57,0.00019452,3]
[347592800,1735935041168,-500.0,0.00019452,3]
[347592801,1735935041177,-255.53516676,0.00019452,3]
[347592802,1735935041187,-500.0,0.00019452,3]
[347592803,1735935041196,-151.0,0.00019452,2]
[347592804,1735935041205,-151.0,0.00019452,2]
[347592805,1735935041215,-500.0,0.00019452,3]
[347592806,1735935041224,-448.54395161,0.00019452,3]
[347592807,1735935041235,-319.15409123,0.00019452,3]
[347592808,1735935041555,-77.97195716,0.00019452,3]
[347592809,1735935041565,-412.43472559,0.00019452,3]
[347592810,1735935041609,-87.56527441,0.00019452,3]
[347592811,1735935041619,-500.0,0.00019452,3]
[347592812,1735935041628,-195.048923,0.00019452,2]
[347592813,1735935041639,-195.048923,0.00019452,2]
[347592814,1735935041652,-195.048923,0.00019452,2]
[347592815,1735935041662,-500.0,0.00019452,3]
[347592817,1735935041671,-195.048923,0.00019452,2]
[347592819,1735935041680,-195.048923,0.00019452,2]
[347592820,1735935041690,-195.048923,0.00019452,2]
[347592821,1735935041699,-538.3,0.00019452,3]
[347592822,1735935041708,-163.94118759,0.00019452,3]
[347592823,1735935041721,-415.84881241,0.00019452,3]
[347592824,1735935041730,-151.0,0.00019452,2]
[347592825,1735935041739,-500.0,0.00019452,3]
[347592826,1735935041748,-151.0,0.00019452,2]
[347592827,1735935041758,-500.0,0.00019452,3]
[347592828,1735935041767,-252.160299,0.00019452,2]
[347592829,1735935041775,-500.0,0.00019452,3]
[347592830,1735935041784,-3720.24,0.00019452,3]
[347592831,1735935041793,-7913.48,0.00019452,3]
[347592832,1735935041802,-500.0,0.00019452,3]
[347592833,1735935041811,-1528.64,0.00019452,3]
[347592834,1735935041820,-500.0,0.00019452,3]
[347592835,1735935041830,-1326.61,0.00019452,3]
[347592836,1735935041839,-500.0,0.00019452,3]
[347592837,1735935041848,-500.0,0.00019452,3]
[347592838,1735935041857,-1403.39,0.00019452,2]
[347592839,1735935041865,-500.0,0.00019452,3]
[347592840,1735935041875,-500.0,0.00019452,3]
[347592841,1735935041884,-509.26,0.00019452,3]
[347592842,1735935041894,-500.0,0.00019452,3]
[347592843,1735935041903,-500.0,0.00019452,3]
[347592844,1735935041913,-500.0,0.00019452,3]
[347592845,1735935041922,-1381.73,0.00019452,3]
[347592846,1735935041931,-500.0,0.00019452,3]
[347592847,1735935041940,-1157.0,0.00019452,3]
[347592848,1735935041949,-500.0,0.00019452,3]
[347592849,1735935041958,-500.0,0.00019452,3]
[347592850,1735935041967,-3918.25,0.00019452,3]
[347592851,1735935041976,-500.0,0.00019452,3]
[347592852,1735935041985,-2958.8,0.00019452,3]
[347592853,1735935041996,-933.2,0.00019452,3]
[347592854,1735935042006,-500.0,0.00019452,3]
[347592855,1735935042015,-505.15572488,0.00019452,3]
[347592856,1735935042024,-935.39,0.00019452,3]
[347592857,1735935042033,-500.0,0.00019452,3]
[347592858,1735935042042,-311.771063,0.00019452,2]
[347592859,1735935042051,-311.771063,0.00019452,2]
[347592860,1735935042060,-500.0,0.00019452,3]
[347592861,1735935042068,-500.0,0.00019452,3]
[347592862,1735935042077,-311.771063,0.00019452,2]
[347592863,1735935042086,-311.771063,0.00019452,2]
[347592864,1735935042096,-500.0,0.00019452,3]
[347592865,1735935042105,-521.23,0.00019452,3]
[347592866,1735935042114,-500.0,0.00019452,3]
[347592867,1735935042123,-197.222034,0.00019452,2]
[347592868,1735935042134,-197.222034,0.00019452,2]
[347592869,1735935042144,-197.222034,0.00019452,2]
[347592870,1735935042153,-197.222034,0.00019452,2]
[347592871,1735935042163,-197.222034,0.00019452,2]
[347592872,1735935042173,-197.222034,0.00019452,2]
[347592873,1735935042182,-792.64,0.00019452,3]
[347592874,1735935042191,-500.0,0.00019452,3]
[347592875,1735935042201,-190.934723,0.00019452,2]
[347592876,1735935042210,-190.934723,0.00019452,2]
[347592877,1735935042220,-190.934723,0.00019452,2]
[347592878,1735935042230,-190.934723,0.00019452,2]
[347592879,1735935042238,-190.934723,0.00019452,2]
[347592880,1735935042247,-500.0,0.00019452,3]
[347592881,1735935042256,-190.934723,0.00019452,2]
[347592882,1735935042266,-629.23,0.00019452,3]
[347592883,1735935042276,-592.3524527,0.00019452,3]
[347592884,1735935042286,-2030.18,0.00019452,3]
[347592885,1735935042295,-692.63,0.00019452,3]
[347592886,1735935042305,-500.0,0.00019452,3]
[347592887,1735935042314,-1191.7,0.00019452,3]
[347592888,1735935042323,-246.208846,0.00019452,2]
[347592889,1735935042333,-246.208846,0.00019452,2]
[347592890,1735935042342,-246.208846,0.00019452,2]
[347592891,1735935042351,-500.0,0.00019452,3]
[347592892,1735935042360,-224.61220669,0.00019452,3]
[347592893,1735935042369,-246.208846,0.00019452,2]
[347592894,1735935042380,-246.208846,0.00019452,2]
[347592895,1735935042389,-246.208846,0.00019452,2]
[347592896,1735935042399,-538.77921735,0.00019452,3]
[347592897,1735935042522,-500.0,0.00019452,3]
[347592898,1735935042534,-1078.14,0.00019452,3]
[347592899,1735935042543,-500.0,0.00019452,3]
[347592900,1735935042552,-2748.76,0.00019452,3]
[347592901,1735935042562,-500.0,0.00019452,3]
[347592902,1735935042571,-500.0,0.00019452,3]
[347592903,1735935042581,-200.386854,0.00019452,2]
[347592904,1735935042590,-559.37,0.00019452,3]
[347592905,1735935042599,-200.386854,0.00019452,2]
[347592906,1735935042608,-500.0,0.00019452,3]
[347592907,1735935042617,-503.32136563,0.00019452,3]
[347592908,1735935042626,-200.386854,0.00019452,2]
[347592909,1735935042636,-200.386854,0.00019452,2]
[347592910,1735935042647,-505.31244333,0.00019452,3]
[347592911,1735935042656,-500.0,0.00019452,3]
[347592912,1735935042665,-500.0,0.00019452,3]
[347592913,1735935042675,-1202.46,0.00019452,3]
[347592914,1735935042685,-1648.67,0.00019452,3]
[347592915,1735935042695,-500.0,0.00019452,3]
[347592916,1735935042705,-505.03023111,0.00019452,3]
[347592917,1735935042714,-514.8,0.00019452,3]
[347592918,1735935042725,-2408.54,0.00019452,3]
[347592919,1735935042735,-37372.86,0.00019452,3]
[347592920,1735935042745,-500.0,0.00019452,3]
[347592921,1735935042756,-685.53,0.00019452,3]
[347592922,1735935042776,-993.74,0.00019452,3]
[347592923,1735935042787,-500.0,0.00019452,3]
[347592924,1735935042799,-500.0,0.00019452,3]
[347592925,1735935042809,-1044.5,0.00019452,3]
[347592926,1735935042821,-500.0,0.00019452,3]
[347592927,1735935042831,-938.39,0.00019452,3]
[347592928,1735935042840,-500.0,0.00019452,3]
[347592929,1735935042850,-500.0,0.00019452,2]
[347592930,1735935042860,-763.67,0.00019452,3]
[347592931,1735935042872,-500.0,0.00019452,3]
[347592932,1735935042882,-500.0,0.00019452,3]
[347592933,1735935042892,-500.0,0.00019452,3]
[347592934,1735935042902,-500.0,0.00019452,3]
[347592935,1735935042912,-500.0,0.00019452,3]
[347592936,1735935042922,-1114.47,0.00019452,3]
[347592937,1735935042931,-151.0,0.00019452,2]
[347592938,1735935042941,-151.0,0.00019452,2]
[347592939,1735935042951,-507.45836022,0.00019452,3]
[347592940,1735935042962,-500.0,0.00019452,3]
[347592941,1735935042972,-500.0,0.00019452,3]
[347592942,1735935042983,-302.84859387,0.00019464,2]
[347592943,1735935042994,-768.999621,0.00019467,2]
[347592944,1735935043004,-178.758946,0.00019467,2]
[347592945,1735935043014,-768.999621,0.00019467,2]
[347592946,1735935043024,-178.758946,0.00019467,2]
[347592947,1735935043036,-311.410945,0.00019467,2]
[347592948,1735935043046,-311.410945,0.00019467,2]
[347592949,1735935043056,-151.0,0.00019467,2]
[347592951,1735935043066,-311.771063,0.00019467,2]
[347592953,1735935043077,-311.771063,0.00019467,2]
[347592955,1735935043087,-6020.38245239,0.00019467,2]
[347592957,1735935043096,-151.0,0.00019472,2]
[347592958,1735935043106,-151.0,0.00019472,2]
[347592960,1735935043116,-151.0,0.00019472,2]
[347592961,1735935043126,-151.0,0.00019472,2]
[347592962,1735935043135,-500.0,0.00019473,2]
[347592963,1735935043145,-500.0,0.00019473,2]
[347592964,1735935043154,-602.27395469,0.00019473,2]
[347592965,1735935043164,-500.0,0.00019473,2]
[347592966,1735935043174,-422.15020785,0.00019473,2]
[347592967,1735935043184,-500.0,0.00019473,2]
[347592968,1735935043193,-768.78,0.000195,2]
[347592969,1735935043203,-2804.82357848,0.000196,2]
[347592970,1735935043212,-151.0,0.000196,2]
[347592971,1735935043222,-500.0,0.000196,2]
[347592972,1735935043231,-501.34124019,0.000196,2]
[347592973,1735935043241,-618.0,0.000196,2]
[347592974,1735935043250,-932.18250619,0.0001965,2]
[347592975,1735935043260,-151.0,0.0001965,2]
[347592976,1735935043269,-302.84859387,0.00019655,2]
[347592977,1735935043279,-151.0,0.000197,2]
[347592978,1735935043288,-151.0,0.000197,2]
[347592979,1735935043299,-1000.0,0.00019721,2]
[347592980,1735935043309,-190.934723,0.00019721,2]
[347592981,1735935043318,-190.934723,0.00019721,2]
[347592982,1735935043328,-160.44682479,0.00019725,2]
[347592983,1735935043337,-166.613456,0.00019725,3]
[347592984,1735935043346,-151.0,0.00019726,2]
[347592985,1735935043357,-151.0,0.00019726,2]
[347592986,1735935043366,-151.0,0.00019726,2]
[347592987,1735935043375,-151.0,0.00019726,2]
[347592988,1735935043385,-151.0,0.00019726,2]
[347592989,1735935043397,-151.0,0.00019726,2]
[347592990,1735935043407,-151.0,0.00019726,2]
[347592991,1735935043416,-151.0,0.00019726,2]
[347592992,1735935043426,-151.0,0.00019726,2]
[347592993,1735935043435,-266.352212,0.00019726,2]
[347592994,1735935043445,-151.0,0.00019726,2]
[347592995,1735935043454,-151.0,0.00019726,2]
[347592996,1735935043464,-151.0,0.00019726,2]
[347592997,1735935043474,-193.435123,0.00019726,2]
[347592998,1735935043484,-193.435123,0.00019726,2]
[347592999,1735935043493,-193.435123,0.00019726,2]
[347593000,1735935043503,-193.435123,0.00019726,2]
[347593001,1735935043513,-151.0,0.00019726,2]
[347593002,1735935043523,-151.0,0.00019726,2]
[347593003,1735935043532,-151.0,0.00019726,2]
[347593004,1735935043541,-151.0,0.00019726,2]
[347593005,1735935043551,-366.652858,0.00019726,2]
[347593006,1735935043561,-366.652858,0.00019726,2]
[347593007,1735935043570,-366.652858,0.00019726,2]
[347593008,1735935043580,-151.0,0.00019726,2]
[347593009,1735935043589,-151.0,0.00019726,2]
[347593010,1735935043599,-366.652858,0.00019726,2]
[347593011,1735935043608,-366.652858,0.00019726,2]
[347593012,1735935043619,-366.652858,0.00019726,2]
[347593013,1735935043628,-151.0,0.00019726,2]
[347593014,1735935043639,-151.0,0.00019726,2]
[347593015,1735935043652,-500.0,0.00019726,3]
[347593016,1735935043662,-500.0,0.00019726,3]
[347593017,1735935043672,-500.0,0.00019726,3]
[347593018,1735935043682,-401.81140349,0.00019726,3]
[347593019,1735935043692,-282.966021,0.00019726,2]
[347593020,1735935043701,-282.966021,0.00019726,2]
[347593021,1735935043710,-282.966021,0.00019726,2]
[347593022,1735935043721,-282.966021,0.00019726,2]
[347593023,1735935043731,-500.0,0.00019726,3]
[347593024,1735935043740,-269.42654,0.00019726,2]
[347593025,1735935043749,-500.0,0.00019726,3]
[347593026,1735935043759,-249.579448,0.00019726,2]
[347593027,1735935043768,-151.0,0.00019726,2]
[347593028,1735935043778,-151.0,0.00019726,2]
[347593029,1735935043788,-151.0,0.00019726,2]
[347593030,1735935043798,-154.982918,0.00019726,2]
[347593031,1735935043807,-505.58988882,0.00019726,3]
[347593032,1735935043816,-608.94,0.00019726,3]
[347593034,1735935043826,-521.392201,0.00019726,2]
[347593035,1735935043835,-521.392201,0.00019726,2]
[347593036,1735935043845,-500.0,0.00019726,3]
[347593037,1735935043855,-521.392201,0.00019726,2]
[347593038,1735935043865,-521.392201,0.00019726,2]
[347593039,1735935043874,-500.0,0.00019726,3]
[347593040,1735935043884,-500.0,0.00019726,3]
[347593041,1735935043894,-151.0,0.00019726,2]
[347593042,1735935043904,-271.128376,0.00019726,2]
[347593043,1735935043913,-151.0,0.00019726,2]
[347593044,1735935043923,-151.0,0.00019726,2]
[347593045,1735935043933,-500.0,0.00019726,3]
[347593046,1735935043944,-221.824965,0.00019726,2]
[347593047,1735935043954,-151.0,0.00019726,2]
[347593048,1735935043964,-151.0,0.00019726,2]
[347593049,1735935043973,-151.0,0.00019726,2]
[347593050,1735935043982,-151.0,0.00019726,2]
[347593051,1735935043992,-623.09,0.00019726,3]
[347593052,1735935044002,-582.01,0.00019726,3]
[347593053,1735935044011,-500.0,0.00019726,3]
[347593054,1735935044021,-595.35,0.00019726,3]
[347593055,1735935044031,-500.0,0.00019726,3]
[347593056,1735935044041,-500.0,0.00019726,3]
[347593057,1735935044050,-500.0,0.00019726,3]
[347593058,1735935044060,-500.0,0.00019726,3]
[347593059,1735935044070,-500.0,0.00019726,3]
[347593060,1735935044080,-500.0,0.00019726,3]
[347593061,1735935044089,-518.81,0.00019726,3]
[347593062,1735935044098,-4308.3,0.00019726,3]
[347593063,1735935044108,-673.74,0.00019726,3]
[347593064,1735935044117,-500.0,0.00019726,3]
[347593065,1735935044127,-985.06,0.00019726,3]
[347593066,1735935044137,-897.3,0.00019726,3]
[347593067,1735935044147,-768.999621,0.00019726,2]
[347593068,1735935044157,-768.999621,0.00019726,2]
[347593069,1735935044167,-178.758946,0.00019726,2]
[347593070,1735935044177,-178.758946,0.00019726,2]
[347593071,1735935044187,-500.0,0.00019726,3]
[347593072,1735935044197,-768.999621,0.00019726,2]
[347593073,1735935044206,-768.999621,0.00019726,2]
[347593075,1735935044215,-178.758946,0.00019726,2]
[347593077,1735935044225,-178.758946,0.00019726,2]
[347593079,1735935044235,-500.76,0.00019726,3]
[347593081,1735935044244,-798.42,0.00019726,3]
[347593082,1735935044254,-583.53,0.00019726,3]
[347593083,1735935044264,-311.410945,0.00019726,2]
[347593084,1735935044273,-311.410945,0.00019726,2]
[347593085,1735935044283,-500.0,0.00019726,3]
[347593086,1735935044292,-500.0,0.00019726,3]
[347593087,1735935044304,-500.0,0.00019726,3]
[347593088,1735935044315,-311.410945,0.00019726,2]
[347593089,1735935044325,-311.410945,0.00019726,2]
[347593090,1735935044335,-500.0,0.00019726,3]
[347593091,1735935044344,-179.02,0.00019726,3]
[347593092,1735935044355,-713.92,0.00019726,3]
[347593093,1735935044365,-500.0,0.00019726,3]
[347593094,1735935044375,-500.0,0.00019726,3]
[347593095,1735935044385,-500.0,0.00019726,3]
[347593096,1735935044395,-500.0,0.00019726,3]
[347593097,1735935044405,-472.76856477,0.00019726,3]
[347593098,1735935044414,-500.0,0.00019726,3]
[347593099,1735935044423,-955.12,0.00019726,3]
[347593100,1735935044433,-790.57,0.00019726,3]
[347593101,1735935044443,-500.0,0.00019726,3]
[347593102,1735935044453,-500.0,0.00019726,3]
[347593103,1735935044463,-500.0,0.00019726,3]
[347593104,1735935044473,-845.67,0.00019726,3]
[347593105,1735935044483,-500.0,0.00019726,3]
[347593106,1735935044493,-500.0,0.00019726,3]
[347593107,1735935044502,-500.0,0.00019726,3]
[347593108,1735935044512,-195.048923,0.00019726,2]
[347593109,1735935044522,-195.048923,0.00019726,2]
[347593110,1735935044531,-195.048923,0.00019726,2]
[347593111,1735935044541,-195.048923,0.00019726,2]
[347593112,1735935044550,-195.048923,0.00019726,2]
[347593113,1735935044560,-195.048923,0.00019726,2]
[347593114,1735935044570,-538.3,0.00019726,3]
[347593115,1735935044579,-579.79,0.00019726,3]
[347593116,1735935044589,-151.0,0.00019726,2]
[347593117,1735935044599,-151.0,0.00019726,2]
[347593118,1735935044608,-500.0,0.00019726,3]
[347593119,1735935044619,-500.0,0.00019726,3]
[347593120,1735935044628,-3720.24,0.00019726,3]
[347593121,1735935044641,-7913.48,0.00019726,3]
[347593122,1735935044654,-500.0,0.00019726,3]
[347593123,1735935044663,-1528.64,0.00019726,3]
[347593124,1735935044672,-500.0,0.00019726,3]
[347593125,1735935044683,-1326.61,0.00019726,3]
[347593126,1735935044692,-500.0,0.00019726,3]
[347593127,1735935044701,-500.0,0.00019726,3]
[347593128,1735935044711,-1403.39,0.00019726,2]
[347593129,1735935044720,-329.61462002,0.00019726,3]
[347593130,1735935044729,-509.26,0.00019726,3]
[347593131,1735935044740,-278.96044648,0.00019726,3]
[347593132,1735935044750,-500.0,0.00019726,3]
[347593133,1735935044760,-500.0,0.00019726,3]
[347593134,1735935044770,-1381.73,0.00019726,3]
[347593135,1735935044779,-500.0,0.00019726,3]
[347593136,1735935044789,-1157.0,0.00019726,3]
[347593137,1735935044798,-500.0,0.00019726,3]
[347593138,1735935044922,-500.0,0.00019726,3]
[347593139,1735935044931,-3918.25,0.00019726,3]
[347593140,1735935044940,-500.0,0.00019726,3]
[347593141,1735935044949,-2958.8,0.00019726,3]
[347593142,1735935044958,-933.2,0.00019726,3]
[347593143,1735935044967,-500.0,0.00019726,3]
[347593144,1735935044976,-935.39,0.00019726,3]
[347593145,1735935044985,-500.0,0.00019726,3]
[347593146,1735935044994,-311.771063,0.00019726,2]
[347593147,1735935045004,-311.771063,0.00019726,2]
[347593148,1735935045013,-500.0,0.00019726,3]
[347593149,1735935045022,-500.0,0.00019726,3]
[347593150,1735935045032,-311.771063,0.00019726,2]
[347593151,1735935045042,-311.771063,0.00019726,2]
[347593152,1735935045051,-500.0,0.00019726,3]
[347593153,1735935045060,-521.23,0.00019726,3]
[347593154,1735935045070,-500.0,0.00019726,3]
[347593155,1735935045079,-197.222034,0.00019726,2]
[347593156,1735935045088,-197.222034,0.00019726,2]
[347593157,1735935045098,-197.222034,0.00019726,2]
[347593158,1735935045106,-197.222034,0.00019726,2]
[347593159,1735935045116,-197.222034,0.00019726,2]
[347593160,1735935045125,-792.64,0.00019726,3]
[347593161,1735935045134,-500.0,0.00019726,3]
[347593162,1735935045143,-197.222034,0.00019726,2]
[347593163,1735935045154,-190.934723,0.00019726,2]
[347593164,1735935045163,-190.934723,0.00019726,2]
[347593165,1735935045173,-500.0,0.00019726,3]
[347593166,1735935045183,-190.934723,0.00019726,2]
[347593167,1735935045192,-190.934723,0.00019726,2]
[347593168,1735935045201,-629.23,0.00019726,3]
[347593169,1735935045210,-2030.18,0.00019726,3]
[347593170,1735935045219,-692.63,0.00019726,3]
[347593171,1735935045228,-1191.7,0.00019726,3]
[347593172,1735935045238,-500.0,0.00019726,3]
[347593173,1735935045248,-246.208846,0.00019726,2]
[347593174,1735935045256,-246.208846,0.00019726,2]
[347593175,1735935045265,-246.208846,0.00019726,2]
[347593176,1735935045274,-246.208846,0.00019726,2]
[347593177,1735935045283,-500.0,0.00019726,3]
[347593178,1735935045293,-1078.14,0.00019726,3]
[347593179,1735935045303,-500.0,0.00019726,3]
[347593180,1735935045311,-576.18568591,0.00019726,3]
[347593181,1735935045428,-2172.57431409,0.00019726,3]
[347593182,1735935045438,-500.0,0.00019726,3]
[347593183,1735935045447,-559.37,0.00019726,3]
[347593184,1735935045457,-500.0,0.00019726,3]
[347593185,1735935045466,-200.386854,0.00019726,2]
[347593186,1735935045477,-200.386854,0.00019726,2]
[347593187,1735935045487,-200.386854,0.00019726,2]
[347593188,1735935045497,-500.0,0.00019726,3]
[347593189,1735935045507,-200.386854,0.00019726,2]
[347593190,1735935045516,-200.386854,0.00019726,2]
[347593191,1735935045525,-200.386854,0.00019726,2]
[347593192,1735935045534,-500.0,0.00019726,3]
[347593193,1735935045543,-500.0,0.00019726,3]
[347593194,1735935045552,-1202.46,0.00019726,3]
[347593195,1735935045563,-607.31010081,0.00019726,3]
[347593196,1735935045896,-482.17314336,0.00018986,2]
[347593222,1735935046560,-365.92696564,0.00018986,2]
[347593223,1735935046571,-53.60073517,0.00019178,2]
[347593224,1735935046610,-1409.06926483,0.00019178,2]
[347593225,1735935046622,-1462.67,0.00019452,3]
[347593226,1735935046635,-1041.35989919,0.00019726,3]
[347593227,1735935046650,-500.0,0.00019726,3]
[347593228,1735935046662,-514.8,0.00019726,3]
[347593229,1735935046673,-2408.54,0.00019726,3]
[347593230,1735935046685,-15973.64815836,0.00019726,3]
[347593237,1735935402987,161.063153,0.00013973,2]
[347593251,1735936120710,1207.999999,0.0002,120]
[347593304,1735936231853,-759.01928804,0.0001584,2]
[347593306,1735936231862,-755.04775823,0.00016,2]
[347593858,1735936237619,-3.97152981,0.00016,2]
[347593860,1735936237630,-3794.60658733,0.00018,2]
[347593862,1735936237640,-1419.66419048,0.00018083,2]
[347593872,1735936237728,-94.40285582,0.00018083,2]
[347593874,1735936237737,-486.647,0.0001874,2]
[347593876,1735936237747,-465.0738542,0.00018897,2]
[347593878,1735936237757,-300.0,0.00018899,2]
[347593880,1735936237766,-2232.03279403,0.000189,2]
[347594066,1735936239864,-169.72604646,0.000189,2]
[347594068,1735936239873,-840.57,0.00019066,2]
[347594070,1735936239883,-612.74383805,0.00019078,2]
[347594072,1735936240056,-352.3939785,0.000191,2]
[347594073,1735936240065,-214.515006,0.000191,2]
[347594074,1735936240075,-153.4836737,0.000191,2]
[347594075,1735936240085,-156.56746729,0.00019173,2]
[347594082,1735936240201,-343.43253271,0.00019173,2]
[347594084,1735936240211,-156.966,0.00019177,2]
[347594086,1735936240221,-150.25034411,0.00019178,2]
[347594088,1735936240230,-151.0,0.00019178,2]
[347594090,1735936240240,-151.0,0.00019178,2]
[347594092,1735936240249,-151.0,0.00019178,2]
[347594094,1735936240258,-500.0,0.00019178,2]
[347594096,1735936240267,-380.87769414,0.00019178,2]
[347594098,1735936240279,-119.12230586,0.00019178,2]
[347594100,1735936240289,-329.88534601,0.00019178,2]
[347594102,1735936240298,-500.0,0.00019178,2]
[347594104,1735936240307,-500.0,0.00019178,2]
[347594106,1735936240316,-500.0,0.00019178,2]
[347594108,1735936240326,-545.2,0.00019178,2]
[347594110,1735936240335,-509.25,0.00019178,2]
[347594112,1735936240344,-500.0,0.00019178,2]
[347594114,1735936240354,-614.01,0.00019178,2]
[347594116,1735936240363,-500.0,0.00019178,2]
[347594118,1735936240372,-90.57779827,0.00019178,2]
[347594448,1735936245880,-409.42220173,0.00019178,2]
[347594449,1735936245890,-500.0,0.00019178,2]
[347594450,1735936245900,-500.0,0.00019178,2]
[347594451,1735936245911,-500.0,0.00019178,2]
[347594452,1735936245921,-500.0,0.00019178,2]
[347594453,1735936245930,-483.75779827,0.00019178,2]
[347594457,1735936831937,-500.0,0.00021917,30]
[347594459,1735937180322,160.957043,0.00013973,2]
[347594524,1735937432181,-2507.175907,0.00017956,2]
[347594526,1735937432191,-2507.175907,0.00018137,2]
[347594528,1735937432201,-300.0,0.00018267,2]
[347594530,1735937432210,-12088.1152652,0.00018268,2]
[347594532,1735937432219,-466.457,0.0001874,2]
[347594534,1735937432228,-302.8788636,0.00019,2]
[347594537,1735937432237,-185.76419844,0.00019078,2]
[347594540,1735937432247,-153.6400067,0.000191,2]
[347594542,1735937432256,-214.515006,0.000191,2]
[347594545,1735937432265,-351.6122909,0.000191,2]
[347594548,1735937432274,-153.6400067,0.000191,2]
[347594551,1735937432283,-214.515006,0.000191,2]
[347594552,1735937432293,-214.515006,0.000191,2]
[347594554,1735937432303,-153.6400067,0.000191,2]
[347594557,1735937432312,-153.6400067,0.000191,2]
[347594559,1735937432321,-214.515006,0.000191,2]
[347594560,1735937432331,-221.46198207,0.00019173,2]
[347594563,1735937432340,-500.0,0.00019173,2]
[347594565,1735937432350,-3185.05360151,0.00019177,2]
[347594567,1735937432359,-47535.39020484,0.00019177,2]
[347594569,1735937432368,-157.719,0.00019177,2]
[347594571,1735937432377,-500.0,0.00019177,5]
[347594573,1735937432386,-500.0,0.00019177,2]
[347594575,1735937432396,-602.98861989,0.00019177,2]
[347594577,1735937432405,-500.0,0.00019177,2]
[347594579,1735937432415,-500.0,0.00019177,2]
[347594581,1735937432424,-488.5411011,0.00019177,2]
[347594583,1735937432433,-182.79445728,0.00019177,2]
[347594585,1735937432442,-366.46748013,0.00019177,2]
[347594587,1735937432452,-500.0,0.00019177,2]